[Event "December 5 Early 2023"]
[Site "https://www.chess.com"]
[Date "2023.12.05"]
[Round "5"]
[White "Vakhlamov, Igor L."]
[Black "Chor, Kevin"]
[Result "1-0"]
[Board "41"]
[TimeControl "180+1"]
[WhiteFideId "24126748"]
[BlackFideId "2090740"]
[WhiteElo "2832"]
[BlackElo "2594"]
[WhiteTeam "RUS"]
[BlackTeam "USA"]
[WhiteClock "0:00:24"]
[BlackClock "0:00:07"]

1. e4 {[%clk 0:03:00]}  c5 {[%clk 0:02:59]} 2. Nf3 {[%clk 0:03:00]}  Nc6 {[%clk 0:02:59]} 3. Nc3 {[%clk 0:03:01]}  g6 {[%clk 0:02:59]} 4. d4 {[%clk 0:03:01]}  cxd4 {[%clk 0:03:00]} 5. Nxd4 {[%clk 0:03:01]}  Bg7 {[%clk 0:03:00]} 6. Nxc6 {[%clk 0:03:02]}  bxc6 {[%clk 0:03:00]} 7. Bc4 {[%clk 0:03:02]}  e6 {[%clk 0:02:45]} 8. O-O {[%clk 0:03:00]}  Ne7 {[%clk 0:02:41]} 9. Qd6 {[%clk 0:02:59]}  Bb7 {[%clk 0:02:24]} 10. Bg5 {[%clk 0:02:49]}  Nc8 {[%clk 0:02:24]} 11. Qd2 {[%clk 0:02:45]}  f6 {[%clk 0:02:23]} 12. Bh6 {[%clk 0:02:40]}  O-O {[%clk 0:02:15]} 13. Rad1 {[%clk 0:02:36]}  d5 {[%clk 0:02:11]} 14. Rfe1 {[%clk 0:02:30]}  Nd6 {[%clk 0:02:01]} 15. Bb3 {[%clk 0:02:29]}  Qc7 {[%clk 0:01:36]} 16. exd5 {[%clk 0:02:25]}  exd5 {[%clk 0:01:37]} 17. Bxg7 {[%clk 0:02:18]}  Kxg7 {[%clk 0:01:37]} 18. Ne2 {[%clk 0:02:16]}  Rae8 {[%clk 0:01:32]} 19. Nf4 {[%clk 0:02:11]}  Ne4 {[%clk 0:01:32]} 20. Qe3 {[%clk 0:02:05]}  Bc8 {[%clk 0:01:30]} 21. Qf3 {[%clk 0:01:31]}  Re5 {[%clk 0:01:23]} 22. Nd3 {[%clk 0:01:30]}  Rg5 {[%clk 0:01:22]} 23. Qf4 {[%clk 0:01:20]}  Qb6 {[%clk 0:01:14]} 24. Qe3 {[%clk 0:01:07]}  Bf5 {[%clk 0:01:00]} 25. f3 {[%clk 0:01:00]}  Nd6 {[%clk 0:00:56]} 26. Qxb6 {[%clk 0:00:57]}  axb6 {[%clk 0:00:56]} 27. Re7+ {[%clk 0:00:58]}  Rf7 {[%clk 0:00:56]} 28. Rxf7+ {[%clk 0:00:57]}  Kxf7 {[%clk 0:00:52]} 29. h4 {[%clk 0:00:52]}  Rh5 {[%clk 0:00:41]} 30. g4 {[%clk 0:00:48]}  Rxh4 {[%clk 0:00:41]} 31. gxf5 {[%clk 0:00:49]}  Nxf5 {[%clk 0:00:42]} 32. a3 {[%clk 0:00:38]}  Nd4 {[%clk 0:00:37]} 33. Kg2 {[%clk 0:00:36]}  Nxb3 {[%clk 0:00:33]} 34. cxb3 {[%clk 0:00:37]}  Rd4 {[%clk 0:00:33]} 35. Kf2 {[%clk 0:00:36]}  h5 {[%clk 0:00:30]} 36. Ke3 {[%clk 0:00:33]}  c5 {[%clk 0:00:31]} 37. b4 {[%clk 0:00:29]}  h4 {[%clk 0:00:26]} 38. bxc5 {[%clk 0:00:29]}  bxc5 {[%clk 0:00:27]} 39. Rh1 {[%clk 0:00:25]}  Rc4 {[%clk 0:00:25]} 40. Kd2 {[%clk 0:00:24]}  g5 {[%clk 0:00:25]} 41. b3 {[%clk 0:00:24]}  Rd4 {[%clk 0:00:25]} 42. Ke3 {[%clk 0:00:24]}  f5 {[%clk 0:00:07]} 43. Nxc5 {[%clk 0:00:24]} 1-0

[Event "December 5 Early 2023"]
[Site "https://www.chess.com"]
[Date "2023.12.05"]
[Round "5"]
[White "Javakhadze, Zurab"]
[Black "Lund, Gunnar"]
[Result "1-0"]
[Board "42"]
[TimeControl "180+1"]
[WhiteFideId "13603647"]
[BlackFideId "1520814"]
[WhiteElo "2832"]
[BlackElo "2593"]
[WhiteTeam "GEO"]
[BlackTeam "NOR"]
[WhiteClock "0:00:05"]
[BlackClock "0:00:04"]

1. d4 {[%clk 0:02:55]}  d6 {[%clk 0:02:58]} 2. Nf3 {[%clk 0:02:50]}  Nf6 {[%clk 0:02:59]} 3. c4 {[%clk 0:02:50]}  Nbd7 {[%clk 0:02:57]} 4. Nc3 {[%clk 0:02:50]}  e5 {[%clk 0:02:57]} 5. Bg5 {[%clk 0:02:49]}  Be7 {[%clk 0:02:55]} 6. e3 {[%clk 0:02:49]}  O-O {[%clk 0:02:55]} 7. Be2 {[%clk 0:02:41]}  c6 {[%clk 0:02:50]} 8. Qc2 {[%clk 0:02:41]}  Qc7 {[%clk 0:02:49]} 9. Bh4 {[%clk 0:02:24]}  Re8 {[%clk 0:02:46]} 10. O-O {[%clk 0:02:15]}  Bf8 {[%clk 0:02:45]} 11. dxe5 {[%clk 0:01:51]}  dxe5 {[%clk 0:02:42]} 12. Bg3 {[%clk 0:01:51]}  g6 {[%clk 0:02:07]} 13. Rfd1 {[%clk 0:01:45]}  Nc5 {[%clk 0:01:58]} 14. b4 {[%clk 0:01:38]}  Bf5 {[%clk 0:01:57]} 15. Qb2 {[%clk 0:01:38]}  Ncd7 {[%clk 0:01:51]} 16. c5 {[%clk 0:01:24]}  Bg7 {[%clk 0:01:22]} 17. Bc4 {[%clk 0:00:53]}  Be6 {[%clk 0:01:21]} 18. Qb3 {[%clk 0:00:52]}  b5 {[%clk 0:01:15]} 19. Bxe6 {[%clk 0:00:50]}  Rxe6 {[%clk 0:01:16]} 20. Ng5 {[%clk 0:00:47]}  Re7 {[%clk 0:01:14]} 21. a4 {[%clk 0:00:38]}  bxa4 {[%clk 0:01:13]} 22. Rxa4 {[%clk 0:00:37]}  h6 {[%clk 0:01:11]} 23. Nge4 {[%clk 0:00:37]}  Nxe4 {[%clk 0:01:07]} 24. Nxe4 {[%clk 0:00:38]}  Kh7 {[%clk 0:01:07]} 25. Ra6 {[%clk 0:00:35]}  f5 {[%clk 0:01:04]} 26. Nd6 {[%clk 0:00:36]}  Rb8 {[%clk 0:00:52]} 27. Qa4 {[%clk 0:00:29]}  Nf6 {[%clk 0:00:36]} 28. Rxc6 {[%clk 0:00:22]}  Qd7 {[%clk 0:00:36]} 29. Ra6 {[%clk 0:00:21]}  f4 {[%clk 0:00:33]} 30. Qxd7 {[%clk 0:00:16]}  Rxd7 {[%clk 0:00:20]} 31. exf4 {[%clk 0:00:16]}  exf4 {[%clk 0:00:21]} 32. Bxf4 {[%clk 0:00:16]}  Rxb4 {[%clk 0:00:22]} 33. Be3 {[%clk 0:00:13]}  Ng4 {[%clk 0:00:21]} 34. h3 {[%clk 0:00:10]}  Nxe3 {[%clk 0:00:21]} 35. fxe3 {[%clk 0:00:11]}  Rc7 {[%clk 0:00:20]} 36. Rd5 {[%clk 0:00:10]}  Rb3 {[%clk 0:00:20]} 37. Ne8 {[%clk 0:00:09]}  Re7 {[%clk 0:00:18]} 38. Nxg7 {[%clk 0:00:09]}  Kxg7 {[%clk 0:00:19]} 39. c6 {[%clk 0:00:07]}  Rbxe3 {[%clk 0:00:14]} 40. Rda5 {[%clk 0:00:06]}  Rc3 {[%clk 0:00:11]} 41. Rxa7 {[%clk 0:00:06]}  Rxa7 {[%clk 0:00:10]} 42. Rxa7+ {[%clk 0:00:07]}  Kf6 {[%clk 0:00:11]} 43. c7 {[%clk 0:00:07]}  Rc2 {[%clk 0:00:08]} 44. Kh2 {[%clk 0:00:06]}  h5 {[%clk 0:00:09]} 45. Kg3 {[%clk 0:00:07]}  g5 {[%clk 0:00:09]} 46. Kf3 {[%clk 0:00:06]}  Rc3+ {[%clk 0:00:09]} 47. Ke4 {[%clk 0:00:07]}  Ke6 {[%clk 0:00:09]} 48. Ra6+ {[%clk 0:00:04]}  Kd7 {[%clk 0:00:09]} 49. Ra5 {[%clk 0:00:05]}  Rg3 {[%clk 0:00:05]} 50. Rc5 {[%clk 0:00:04]}  Kc8 {[%clk 0:00:05]} 51. Rc2 {[%clk 0:00:04]}  h4 {[%clk 0:00:03]} 52. Kf5 {[%clk 0:00:04]}  Ra3 {[%clk 0:00:02]} 53. Kxg5 {[%clk 0:00:05]}  Ra4 {[%clk 0:00:02]} 54. Kh5 {[%clk 0:00:05]}  Rd4 {[%clk 0:00:02]} 55. Rc5 {[%clk 0:00:03]}  Re4 {[%clk 0:00:02]} 56. Rg5 {[%clk 0:00:04]}  Kxc7 {[%clk 0:00:01]} 57. Rg4 {[%clk 0:00:04]}  Re2 {[%clk 0:00:01]} 58. Kxh4 {[%clk 0:00:05]}  Kd6 {[%clk 0:00:02]} 59. Kg3 {[%clk 0:00:05]}  Ke7 {[%clk 0:00:03]} 60. Rf4 {[%clk 0:00:05]}  Ke6 {[%clk 0:00:03]} 61. Rf3 {[%clk 0:00:06]}  Ra2 {[%clk 0:00:04]} 62. h4 {[%clk 0:00:06]}  Ra8 {[%clk 0:00:04]} 63. Kh3 {[%clk 0:00:07]}  Rh8 {[%clk 0:00:05]} 64. g4 {[%clk 0:00:07]}  Rh7 {[%clk 0:00:05]} 65. h5 {[%clk 0:00:08]}  Ra7 {[%clk 0:00:06]} 66. Kh4 {[%clk 0:00:08]}  Ra1 {[%clk 0:00:07]} 67. h6 {[%clk 0:00:07]}  Ra5 {[%clk 0:00:06]} 68. g5 {[%clk 0:00:07]}  Ra4+ {[%clk 0:00:06]} 69. Kh5 {[%clk 0:00:07]}  Ra3 {[%clk 0:00:04]} 70. Rxa3 {[%clk 0:00:05]} 1-0

[Event "December 5 Early 2023"]
[Site "https://www.chess.com"]
[Date "2023.12.05"]
[Round "5"]
[White "Manukyan, Sargis A."]
[Black "Klekowski, Maciej"]
[Result "0-1"]
[Board "43"]
[TimeControl "180+1"]
[WhiteFideId "13303970"]
[BlackFideId "1132717"]
[WhiteElo "2574"]
[BlackElo "2831"]
[WhiteTeam "ARM"]
[BlackTeam "POL"]
[WhiteClock "0:00:01"]
[BlackClock "0:00:12"]

1. d4 {[%clk 0:03:00]}  Nf6 {[%clk 0:02:59]} 2. c4 {[%clk 0:03:01]}  d6 {[%clk 0:03:00]} 3. Nf3 {[%clk 0:03:00]}  Nbd7 {[%clk 0:03:00]} 4. Nc3 {[%clk 0:02:59]}  e5 {[%clk 0:03:00]} 5. e4 {[%clk 0:03:00]}  Be7 {[%clk 0:03:01]} 6. Be2 {[%clk 0:03:00]}  O-O {[%clk 0:03:01]} 7. O-O {[%clk 0:03:00]}  Re8 {[%clk 0:03:01]} 8. Re1 {[%clk 0:02:58]}  c6 {[%clk 0:02:59]} 9. h3 {[%clk 0:02:58]}  Qc7 {[%clk 0:02:59]} 10. d5 {[%clk 0:02:59]}  a6 {[%clk 0:02:57]} 11. Bf1 {[%clk 0:02:59]}  cxd5 {[%clk 0:02:47]} 12. Nxd5 {[%clk 0:02:51]}  Nxd5 {[%clk 0:02:46]} 13. cxd5 {[%clk 0:02:43]}  b5 {[%clk 0:02:42]} 14. Be3 {[%clk 0:02:40]}  Bb7 {[%clk 0:02:36]} 15. Rc1 {[%clk 0:02:38]}  Qb8 {[%clk 0:02:36]} 16. Qd2 {[%clk 0:02:35]}  Bd8 {[%clk 0:02:36]} 17. Bg5 {[%clk 0:02:29]}  Bb6 {[%clk 0:02:35]} 18. Be3 {[%clk 0:02:29]}  Nc5 {[%clk 0:02:17]} 19. Bd3 {[%clk 0:02:18]}  Qa7 {[%clk 0:02:15]} 20. Bb1 {[%clk 0:02:17]}  Rac8 {[%clk 0:02:14]} 21. Nh4 {[%clk 0:02:16]}  g6 {[%clk 0:02:10]} 22. Bg5 {[%clk 0:02:11]}  Nd7 {[%clk 0:02:10]} 23. Bh6 {[%clk 0:01:56]}  a5 {[%clk 0:01:44]} 24. Nf5 {[%clk 0:01:55]}  Bxf2+ {[%clk 0:01:26]} 25. Kh2 {[%clk 0:01:35]}  Bc5 {[%clk 0:01:02]} 26. Qg5 {[%clk 0:01:06]}  f6 {[%clk 0:01:02]} 27. Qg4 {[%clk 0:01:02]}  Rcd8 {[%clk 0:00:41]} 28. Rf1 {[%clk 0:00:43]}  Bc8 {[%clk 0:00:39]} 29. Nh4 {[%clk 0:00:41]}  Nf8 {[%clk 0:00:39]} 30. Qg3 {[%clk 0:00:41]}  Qe7 {[%clk 0:00:32]} 31. Rc3 {[%clk 0:00:36]}  Kh8 {[%clk 0:00:25]} 32. Rcf3 {[%clk 0:00:36]}  Nd7 {[%clk 0:00:26]} 33. a3 {[%clk 0:00:33]}  Rg8 {[%clk 0:00:22]} 34. Bd2 {[%clk 0:00:29]}  a4 {[%clk 0:00:21]} 35. Qe1 {[%clk 0:00:26]}  Rdf8 {[%clk 0:00:22]} 36. g4 {[%clk 0:00:27]}  Nb6 {[%clk 0:00:20]} 37. Bh6 {[%clk 0:00:27]}  Rf7 {[%clk 0:00:20]} 38. Qe2 {[%clk 0:00:26]}  Nc4 {[%clk 0:00:20]} 39. Bd3 {[%clk 0:00:27]}  f5 {[%clk 0:00:19]} 40. exf5 {[%clk 0:00:15]}  Qxh4 {[%clk 0:00:18]} 41. fxg6 {[%clk 0:00:16]}  Rxf3 {[%clk 0:00:17]} 42. g7+ {[%clk 0:00:16]}  Rxg7 {[%clk 0:00:17]} 43. Bxg7+ {[%clk 0:00:17]}  Kxg7 {[%clk 0:00:18]} 44. Qxf3 {[%clk 0:00:17]}  Qe7 {[%clk 0:00:16]} 45. Qe4 {[%clk 0:00:13]}  Kg8 {[%clk 0:00:17]} 46. Bxc4 {[%clk 0:00:09]}  bxc4 {[%clk 0:00:18]} 47. Qxc4 {[%clk 0:00:09]}  Bd7 {[%clk 0:00:18]} 48. Qa6 {[%clk 0:00:09]}  Be8 {[%clk 0:00:18]} 49. Qc8 {[%clk 0:00:09]}  Kg7 {[%clk 0:00:18]} 50. Qf5 {[%clk 0:00:09]}  Bg6 {[%clk 0:00:18]} 51. Qf3 {[%clk 0:00:07]}  e4 {[%clk 0:00:18]} 52. Qc3+ {[%clk 0:00:08]}  Kg8 {[%clk 0:00:11]} 53. Kg2 {[%clk 0:00:07]}  e3 {[%clk 0:00:11]} 54. Qc4 {[%clk 0:00:07]}  Qe4+ {[%clk 0:00:11]} 55. Qxe4 {[%clk 0:00:07]}  Bxe4+ {[%clk 0:00:12]} 56. Kg3 {[%clk 0:00:08]}  Bxd5 {[%clk 0:00:12]} 57. Rf4 {[%clk 0:00:01]}  e2 {[%clk 0:00:12]} 0-1

[Event "December 5 Early 2023"]
[Site "https://www.chess.com"]
[Date "2023.12.05"]
[Round "5"]
[White "Bocharov, Dmitry"]
[Black "Mortazavi, Ali"]
[Result "1-0"]
[Board "46"]
[TimeControl "180+1"]
[WhiteFideId "4138716"]
[BlackFideId "401323"]
[WhiteElo "2814"]
[BlackElo "2565"]
[WhiteTeam "RUS"]
[BlackTeam "ENG"]
[WhiteClock "0:01:08"]
[BlackClock "0:00:22"]

1. c4 {[%clk 0:02:50]}  Nf6 {[%clk 0:02:59]} 2. g3 {[%clk 0:02:50]}  g6 {[%clk 0:02:58]} 3. Bg2 {[%clk 0:02:49]}  Bg7 {[%clk 0:02:59]} 4. d4 {[%clk 0:02:48]}  O-O {[%clk 0:03:00]} 5. Nc3 {[%clk 0:02:48]}  d6 {[%clk 0:03:01]} 6. Nf3 {[%clk 0:02:49]}  Nbd7 {[%clk 0:03:02]} 7. O-O {[%clk 0:02:48]}  e5 {[%clk 0:03:02]} 8. e4 {[%clk 0:02:48]}  c6 {[%clk 0:03:03]} 9. h3 {[%clk 0:02:42]}  Qa5 {[%clk 0:03:03]} 10. Be3 {[%clk 0:02:40]}  Nb6 {[%clk 0:03:02]} 11. Qe2 {[%clk 0:02:40]}  exd4 {[%clk 0:03:01]} 12. Bxd4 {[%clk 0:02:27]}  Re8 {[%clk 0:03:00]} 13. Qd3 {[%clk 0:02:22]}  Qb4 {[%clk 0:02:34]} 14. b3 {[%clk 0:02:20]}  c5 {[%clk 0:02:33]} 15. Be3 {[%clk 0:02:13]}  Be6 {[%clk 0:01:34]} 16. Rfc1 {[%clk 0:01:46]}  Rad8 {[%clk 0:01:33]} 17. Bd2 {[%clk 0:01:38]}  Nxc4 {[%clk 0:01:10]} 18. bxc4 {[%clk 0:01:38]}  Bxc4 {[%clk 0:01:10]} 19. Qc2 {[%clk 0:01:38]}  Qa3 {[%clk 0:01:05]} 20. Rab1 {[%clk 0:01:34]}  Qa6 {[%clk 0:01:04]} 21. a4 {[%clk 0:01:31]}  Bd3 {[%clk 0:01:04]} 22. Qb3 {[%clk 0:01:29]}  Bxb1 {[%clk 0:01:04]} 23. Rxb1 {[%clk 0:01:29]}  Nxe4 {[%clk 0:01:02]} 24. Nxe4 {[%clk 0:01:27]}  Rxe4 {[%clk 0:01:03]} 25. Ng5 {[%clk 0:01:26]}  Re7 {[%clk 0:00:57]} 26. Bxb7 {[%clk 0:01:19]}  Qe2 {[%clk 0:00:45]} 27. Re1 {[%clk 0:01:19]}  Qxd2 {[%clk 0:00:45]} 28. Rxe7 {[%clk 0:01:18]}  Qc1+ {[%clk 0:00:42]} 29. Kg2 {[%clk 0:01:16]}  c4 {[%clk 0:00:43]} 30. Qf3 {[%clk 0:01:15]}  Rf8 {[%clk 0:00:39]} 31. Rxf7 {[%clk 0:01:13]}  Qxg5 {[%clk 0:00:22]} 32. Bd5 {[%clk 0:01:08]} 1-0

[Event "December 5 Early 2023"]
[Site "https://www.chess.com"]
[Date "2023.12.05"]
[Round "5"]
[White "Kozlov, Gennady"]
[Black "Yeremyan, Alen"]
[Result "1-0"]
[Board "47"]
[TimeControl "180+1"]
[WhiteFideId "4191668"]
[BlackFideId "13308998"]
[WhiteElo "2559"]
[BlackElo "2811"]
[WhiteTeam "ESP"]
[BlackTeam "ARM"]
[WhiteClock "0:01:27"]
[BlackClock "0:00:07"]

1. b3 {[%clk 0:02:59]}  Nf6 {[%clk 0:03:00]} 2. Bb2 {[%clk 0:03:00]}  g6 {[%clk 0:03:00]} 3. e3 {[%clk 0:03:00]}  Bg7 {[%clk 0:03:01]} 4. f4 {[%clk 0:03:01]}  O-O {[%clk 0:03:02]} 5. Nf3 {[%clk 0:03:01]}  d6 {[%clk 0:03:02]} 6. Be2 {[%clk 0:03:02]}  e5 {[%clk 0:03:03]} 7. fxe5 {[%clk 0:03:02]}  Ng4 {[%clk 0:03:04]} 8. O-O {[%clk 0:03:02]}  Nxe5 {[%clk 0:03:03]} 9. Nxe5 {[%clk 0:03:03]}  dxe5 {[%clk 0:03:04]} 10. Nc3 {[%clk 0:03:02]}  h6 {[%clk 0:03:03]} 11. e4 {[%clk 0:03:02]}  Be6 {[%clk 0:03:02]} 12. d3 {[%clk 0:02:56]}  Nc6 {[%clk 0:03:02]} 13. Bg4 {[%clk 0:02:56]}  f5 {[%clk 0:02:58]} 14. exf5 {[%clk 0:02:56]}  gxf5 {[%clk 0:02:58]} 15. Bf3 {[%clk 0:02:56]}  Rb8 {[%clk 0:02:56]} 16. Bxc6 {[%clk 0:02:54]}  bxc6 {[%clk 0:02:56]} 17. Rb1 {[%clk 0:02:50]}  Qg5 {[%clk 0:02:50]} 18. Qf3 {[%clk 0:02:50]}  e4 {[%clk 0:02:24]} 19. dxe4 {[%clk 0:02:50]}  f4 {[%clk 0:02:24]} 20. h3 {[%clk 0:02:45]}  Rbd8 {[%clk 0:02:17]} 21. Rbd1 {[%clk 0:02:41]}  h5 {[%clk 0:02:14]} 22. Na4 {[%clk 0:02:37]}  Bg4 {[%clk 0:01:59]} 23. hxg4 {[%clk 0:02:34]}  hxg4 {[%clk 0:01:59]} 24. Qf2 {[%clk 0:02:29]}  g3 {[%clk 0:01:58]} 25. Qf3 {[%clk 0:02:24]}  Bxb2 {[%clk 0:01:52]} 26. Nxb2 {[%clk 0:02:11]}  Qc5+ {[%clk 0:01:52]} 27. Kh1 {[%clk 0:02:12]}  Qg5 {[%clk 0:01:43]} 28. Rfe1 {[%clk 0:02:03]}  Rxd1 {[%clk 0:01:34]} 29. Rxd1 {[%clk 0:02:02]}  Rf6 {[%clk 0:01:34]} 30. e5 {[%clk 0:01:51]}  Rh6+ {[%clk 0:00:58]} 31. Kg1 {[%clk 0:01:51]}  Qxe5 {[%clk 0:00:39]} 32. Nd3 {[%clk 0:01:48]}  Qd4+ {[%clk 0:00:33]} 33. Kf1 {[%clk 0:01:48]}  Rf6 {[%clk 0:00:20]} 34. Re1 {[%clk 0:01:42]}  Kf8 {[%clk 0:00:17]} 35. Qh5 {[%clk 0:01:32]}  Rf7 {[%clk 0:00:10]} 36. Qe5 {[%clk 0:01:28]}  Qd8 {[%clk 0:00:07]} 37. Qh8# {[%clk 0:01:27]} 1-0

[Event "December 5 Early 2023"]
[Site "https://www.chess.com"]
[Date "2023.12.05"]
[Round "5"]
[White "Weetik, Vjacheslav"]
[Black "Yelisieiev, Yevhenii"]
[Result "1-0"]
[Board "51"]
[TimeControl "180+1"]
[WhiteFideId "4153472"]
[BlackFideId "14139642"]
[WhiteElo "2793"]
[BlackElo "2546"]
[WhiteTeam "RUS"]
[BlackTeam "GER"]
[WhiteClock "0:00:14"]
[BlackClock "0:00:04"]

1. e4 {[%clk 0:02:57]}  d6 {[%clk 0:03:00]} 2. d4 {[%clk 0:02:57]}  Nf6 {[%clk 0:03:01]} 3. Nc3 {[%clk 0:02:57]}  e5 {[%clk 0:03:02]} 4. Nf3 {[%clk 0:02:57]}  Nbd7 {[%clk 0:03:01]} 5. Bc4 {[%clk 0:02:57]}  Be7 {[%clk 0:03:02]} 6. O-O {[%clk 0:02:57]}  O-O {[%clk 0:03:03]} 7. Re1 {[%clk 0:02:58]}  c6 {[%clk 0:03:03]} 8. a4 {[%clk 0:02:58]}  a5 {[%clk 0:03:04]} 9. h3 {[%clk 0:02:58]}  Nb6 {[%clk 0:03:05]} 10. Bf1 {[%clk 0:02:45]}  exd4 {[%clk 0:03:04]} 11. Qxd4 {[%clk 0:02:44]}  d5 {[%clk 0:03:04]} 12. exd5 {[%clk 0:02:31]}  Nfxd5 {[%clk 0:03:02]} 13. Ne4 {[%clk 0:02:24]}  Nb4 {[%clk 0:02:31]} 14. Qc3 {[%clk 0:02:00]}  N6d5 {[%clk 0:02:17]} 15. Qb3 {[%clk 0:02:00]}  Be6 {[%clk 0:02:17]} 16. Neg5 {[%clk 0:01:56]}  Bf5 {[%clk 0:02:01]} 17. Re2 {[%clk 0:01:22]}  h6 {[%clk 0:01:26]} 18. Ne4 {[%clk 0:01:21]}  Re8 {[%clk 0:01:26]} 19. Ng3 {[%clk 0:01:16]}  Be6 {[%clk 0:01:24]} 20. Rxe6 {[%clk 0:01:16]}  fxe6 {[%clk 0:01:24]} 21. c3 {[%clk 0:01:13]}  Na6 {[%clk 0:01:23]} 22. Qxb7 {[%clk 0:01:06]}  Qb6 {[%clk 0:01:17]} 23. Qxb6 {[%clk 0:01:02]}  Nxb6 {[%clk 0:01:17]} 24. Nd4 {[%clk 0:01:00]}  Nc5 {[%clk 0:01:07]} 25. Nxc6 {[%clk 0:00:59]}  Bf6 {[%clk 0:00:46]} 26. Bb5 {[%clk 0:00:59]}  e5 {[%clk 0:00:45]} 27. Be3 {[%clk 0:00:58]}  Nbd7 {[%clk 0:00:38]} 28. Rd1 {[%clk 0:00:51]}  Rec8 {[%clk 0:00:29]} 29. Nf5 {[%clk 0:00:50]}  Kh7 {[%clk 0:00:28]} 30. Nce7 {[%clk 0:00:37]}  Rc7 {[%clk 0:00:17]} 31. Nd5 {[%clk 0:00:36]}  Rcc8 {[%clk 0:00:15]} 32. h4 {[%clk 0:00:33]}  h5 {[%clk 0:00:14]} 33. Nde7 {[%clk 0:00:28]}  Rc7 {[%clk 0:00:14]} 34. Nd5 {[%clk 0:00:29]}  Rcc8 {[%clk 0:00:14]} 35. g3 {[%clk 0:00:29]}  g6 {[%clk 0:00:14]} 36. Nd6 {[%clk 0:00:27]}  Rc7 {[%clk 0:00:14]} 37. Kg2 {[%clk 0:00:23]}  Bg7 {[%clk 0:00:14]} 38. Nf7 {[%clk 0:00:20]}  Rcc8 {[%clk 0:00:12]} 39. Ng5+ {[%clk 0:00:20]}  Kh8 {[%clk 0:00:12]} 40. Ne7 {[%clk 0:00:20]}  Rd8 {[%clk 0:00:10]} 41. Nxg6+ {[%clk 0:00:15]}  Kg8 {[%clk 0:00:09]} 42. Bc4+ {[%clk 0:00:15]}  Ne6 {[%clk 0:00:04]} 43. Bxe6# {[%clk 0:00:14]} 1-0

[Event "December 5 Early 2023"]
[Site "https://www.chess.com"]
[Date "2023.12.05"]
[Round "5"]
[White "Todorovic, Bojan"]
[Black "Wagner, Dennis"]
[Result "0-1"]
[Board "55"]
[TimeControl "180+1"]
[WhiteFideId "917087"]
[BlackFideId "24650684"]
[WhiteElo "2442"]
[BlackElo "2765"]
[WhiteTeam "SRB"]
[BlackTeam "GER"]
[WhiteClock "0:00:47"]
[BlackClock "0:00:40"]

1. Nf3 {[%clk 0:02:59]}  g6 {[%clk 0:02:57]} 2. c4 {[%clk 0:02:58]}  Bg7 {[%clk 0:02:57]} 3. Nc3 {[%clk 0:02:58]}  c5 {[%clk 0:02:56]} 4. g3 {[%clk 0:02:58]}  Nc6 {[%clk 0:02:56]} 5. Bg2 {[%clk 0:02:57]}  d6 {[%clk 0:02:55]} 6. O-O {[%clk 0:02:57]}  Bf5 {[%clk 0:02:54]} 7. d3 {[%clk 0:02:55]}  Qd7 {[%clk 0:02:54]} 8. Re1 {[%clk 0:02:52]}  Bh3 {[%clk 0:02:54]} 9. Bh1 {[%clk 0:02:52]}  Nf6 {[%clk 0:02:49]} 10. Bg5 {[%clk 0:02:47]}  h6 {[%clk 0:02:47]} 11. Bxf6 {[%clk 0:02:46]}  Bxf6 {[%clk 0:02:48]} 12. Rb1 {[%clk 0:02:44]}  Bg7 {[%clk 0:02:30]} 13. Qd2 {[%clk 0:02:38]}  O-O {[%clk 0:02:27]} 14. Nd5 {[%clk 0:02:37]}  Rab8 {[%clk 0:02:15]} 15. b4 {[%clk 0:02:35]}  cxb4 {[%clk 0:01:56]} 16. Nxb4 {[%clk 0:02:34]}  Nxb4 {[%clk 0:01:53]} 17. Qxb4 {[%clk 0:02:34]}  b6 {[%clk 0:01:50]} 18. e3 {[%clk 0:02:30]}  Rfc8 {[%clk 0:01:49]} 19. Nd4 {[%clk 0:02:29]}  Rc5 {[%clk 0:01:35]} 20. Nb5 {[%clk 0:02:20]}  Rbc8 {[%clk 0:01:29]} 21. Nc3 {[%clk 0:02:14]}  Bxc3 {[%clk 0:01:20]} 22. Qxc3 {[%clk 0:02:14]}  b5 {[%clk 0:01:15]} 23. Rec1 {[%clk 0:02:01]}  bxc4 {[%clk 0:01:14]} 24. dxc4 {[%clk 0:02:02]}  Qa4 {[%clk 0:01:10]} 25. Qb3 {[%clk 0:01:56]}  Rxc4 {[%clk 0:01:01]} 26. Rxc4 {[%clk 0:01:45]}  Qxc4 {[%clk 0:01:01]} 27. Qxc4 {[%clk 0:01:27]}  Rxc4 {[%clk 0:01:02]} 28. Bd5 {[%clk 0:01:25]}  Rc5 {[%clk 0:00:58]} 29. Bb3 {[%clk 0:01:20]}  a5 {[%clk 0:00:58]} 30. f3 {[%clk 0:01:20]}  h5 {[%clk 0:00:58]} 31. Kf2 {[%clk 0:01:20]}  Kg7 {[%clk 0:00:58]} 32. g4 {[%clk 0:01:15]}  hxg4 {[%clk 0:00:55]} 33. Kg3 {[%clk 0:01:15]}  f5 {[%clk 0:00:52]} 34. Rd1 {[%clk 0:01:09]}  Rc3 {[%clk 0:00:49]} 35. Re1 {[%clk 0:01:03]}  Kf6 {[%clk 0:00:47]} 36. f4 {[%clk 0:00:58]}  g5 {[%clk 0:00:45]} 37. Re2 {[%clk 0:00:47]}  gxf4+ {[%clk 0:00:43]} 38. Kxf4 {[%clk 0:00:47]}  e5+ {[%clk 0:00:40]} 39. Kg3 {[%clk 0:00:47]} 0-1

[Event "December 5 Early 2023"]
[Site "https://www.chess.com"]
[Date "2023.12.05"]
[Round "5"]
[White "Wagh Suyog"]
[Black "Sai Han Thiha"]
[Result "1-0"]
[Board "56"]
[TimeControl "180+1"]
[WhiteFideId "25071688"]
[BlackFideId "13012290"]
[WhiteElo "2763"]
[BlackElo "2430"]
[WhiteTeam "IND"]
[BlackTeam "MYA"]
[WhiteClock "0:01:38"]
[BlackClock "0:00:00"]

1. e4 {[%clk 0:03:00]}  c6 {[%clk 0:03:00]} 2. d4 {[%clk 0:02:58]}  d5 {[%clk 0:03:01]} 3. e5 {[%clk 0:02:58]}  c5 {[%clk 0:03:01]} 4. dxc5 {[%clk 0:02:37]}  e6 {[%clk 0:03:01]} 5. Be3 {[%clk 0:02:37]}  Nd7 {[%clk 0:02:58]} 6. b4 {[%clk 0:02:34]}  Qc7 {[%clk 0:02:16]} 7. f4 {[%clk 0:02:29]}  a5 {[%clk 0:02:16]} 8. c3 {[%clk 0:02:29]}  axb4 {[%clk 0:02:16]} 9. cxb4 {[%clk 0:02:29]}  b6 {[%clk 0:02:17]} 10. Nc3 {[%clk 0:01:56]}  bxc5 {[%clk 0:02:12]} 11. Nb5 {[%clk 0:01:56]}  Qb8 {[%clk 0:01:48]} 12. bxc5 {[%clk 0:01:53]}  Nxc5 {[%clk 0:01:43]} 13. Rb1 {[%clk 0:01:49]}  Nb7 {[%clk 0:01:30]} 14. Qc2 {[%clk 0:01:43]}  Ra3 {[%clk 0:00:02]} 15. Nxa3 {[%clk 0:01:38]}  Bxa3 {[%clk 0:00:00]} 16. Qa4+ {[%clk 0:01:38]} 1-0